bitfinex/quotes_ETHUSD_20220113
["timestamp","ask_amount","ask_price","bid_price","bid_amount"]
[1642103467557,0.1226,3261.2,3260.4,5.95]
[1642103467558,0.07373685,3261.2,3260.9,0.5050364]
[1642103468057,0.00341054,3261.1,3260.9,0.5050364]
[1642103468457,0.00284212,3261.0,3260.9,0.5050364]
[1642103469106,0.00284212,3261.0,3260.9,0.8050364]
[1642103469507,0.00284212,3261.0,3260.9,1.1050364]
[1642103469707,0.00284212,3261.0,3260.9,2.4110107]
[1642103469910,0.00284212,3261.0,3260.9,6.2610107]
[1642103470410,0.00284212,3261.0,3260.9,7.2610107]
[1642103470608,0.00284212,3261.0,3260.9,0.3]
[1642103470808,0.00284212,3261.0,3260.5,0.88915]
[1642103471109,0.0022737,3260.9,3260.6,1.0664779]
[1642103471511,0.00170527,3260.8,3260.6,0.3]
[1642103471710,0.00170527,3260.8,3260.7,9.18165657]
[1642103471908,3.956646,3261.5,3260.7,9.18165657]
[1642103472108,3.956646,3261.5,3260.7,1.51293203]
[1642103472309,0.00511581,3261.4,3260.7,1.51295203]
[1642103472514,0.13690619,3261.4,3260.7,5.94170782]
[1642103472758,0.00454739,3261.3,3260.7,5.94170782]
[1642103473057,0.00397897,3261.2,3260.8,1.0]
[1642103473458,0.00341054,3261.1,3261.0,1.15898816]
[1642103473859,0.00341054,3261.1,3261.0,1.45898816]
[1642103474657,0.00341054,3261.1,3261.0,4.00581434]
[1642103475460,0.00341054,3261.1,3261.0,5.00581434]
[1642103475859,0.13179038,3261.4,3261.1,9.6]
[1642103476060,1.52823314,3262.0,3261.4,0.76612]
[1642103476263,1.51914014,3262.0,3261.7,0.76612]
[1642103476515,1.51914014,3262.0,3261.9,10.08900215]
[1642103476715,1.01985189,3262.1,3261.9,12.21250215]
[1642103476913,1.52823314,3262.3,3262.0,0.1226]
[1642103477113,1.52823314,3262.3,3262.2,4.45]
[1642103477315,1.51914014,3262.3,3262.2,4.45]
[1642103477514,1.51914014,3262.3,3262.2,5.05]
[1642103477913,1.51914014,3262.3,3262.2,6.05]
[1642103478815,3.998993,3262.7,3262.3,2.17603901]
[1642103479018,0.009093,3262.7,3262.5,0.3]
[1642103479226,0.88811356,3262.9,3262.5,0.3]
[1642103479418,0.88811356,3262.9,3262.5,0.5183]
[1642103479718,0.0096632,3262.8,3262.5,0.5183]
[1642103480155,0.00909478,3262.7,3262.5,0.5183]
[1642103480358,0.00909478,3262.7,3262.6,10.78205]
[1642103480554,0.88811356,3262.9,3262.6,11.78205]
[1642103480754,0.88811356,3262.9,3262.7,0.3]
[1642103480958,0.0096632,3262.8,3262.7,1.3]
[1642103481154,0.0096632,3262.8,3262.7,1.6]
[1642103481755,0.0096632,3262.8,3262.7,0.6]
[1642103481956,0.0096632,3262.8,3262.7,0.3]
[1642103482255,0.0096632,3262.8,3262.4,1.0]
[1642103482455,0.0096632,3262.8,3262.5,2.89854751]
[1642103482657,0.00909478,3262.7,3262.5,2.89854751]
[1642103482859,0.00909478,3262.7,3262.6,4.41207257]
[1642103483056,0.88811356,3262.9,3262.7,0.766]
[1642103483456,0.88811356,3262.9,3262.7,2.066]
[1642103483457,0.0096632,3262.8,3262.7,2.066]
[1642103483656,0.0096632,3262.8,3262.7,6.066]
[1642103484504,0.0096632,3262.8,3262.7,0.766]
[1642103484707,0.1321632,3262.8,3262.7,0.0016]
[1642103485905,0.0096632,3262.8,3262.7,0.0016]
[1642103488757,0.0096632,3262.8,3262.7,3.5516]
[1642103488955,0.0096632,3262.8,3262.7,3.8516]
[1642103489156,0.0096632,3262.8,3262.7,4.8516]
[1642103489555,0.0096632,3262.8,3262.7,7.9016]
[1642103490762,0.0096632,3262.8,3262.7,4.8516]
[1642103491603,0.0096632,3262.8,3262.7,7.6016]
[1642103491804,0.0096632,3262.8,3262.7,8.36762]
[1642103492204,0.0096632,3262.8,3262.7,8.58132]
[1642103493005,0.0096632,3262.8,3262.7,5.83132]
[1642103493414,0.0096632,3262.8,3262.7,5.61762]
[1642103494607,0.0096632,3262.8,3262.7,9.41762]
[1642103495008,0.0096632,3262.8,3262.7,12.49010603]
[1642103495264,0.0096632,3262.8,3262.7,10.64552]
[1642103495659,0.0096632,3262.8,3262.7,12.89552]
[1642103496862,0.0096632,3262.8,3262.7,15.52944605]
[1642103497263,0.0096632,3262.8,3262.7,13.08484605]
[1642103498667,0.0096632,3262.8,3262.7,13.20734605]
[1642103500610,0.0096632,3262.8,3262.7,9.40734605]
[1642103500815,0.0096632,3262.8,3262.7,8.37404605]
[1642103501810,0.0096632,3262.8,3262.7,3.52404605]
[1642103502010,0.0096632,3262.8,3262.7,2.75802605]
[1642103502210,0.0096632,3262.8,3262.7,2.63552605]
[1642103502413,3.0096632,3262.8,3262.7,2.63552605]
[1642103502959,0.0096632,3262.8,3262.7,2.63552605]
[1642103503963,0.24365875,3262.8,3262.7,0.0016]
[1642103504460,0.24365875,3262.8,3262.7,8.8016]
[1642103504660,0.24365875,3262.8,3262.7,10.56765]
[1642103504859,0.24365875,3262.8,3262.7,10.86765]
[1642103505662,0.24365875,3262.8,3262.7,1.06765]
[1642103505861,0.24365875,3262.8,3262.7,0.3016]
[1642103506264,0.24365875,3262.8,3262.7,0.0016]
[1642103506509,0.24365875,3262.8,3262.7,2.63552605]
[1642103510470,0.24365875,3262.8,3262.7,2.93552605]
[1642103511572,0.24365875,3262.8,3262.7,10.28552605]
[1642103511769,0.24365875,3262.8,3262.7,10.40799405]
[1642103512369,0.24365875,3262.8,3262.7,11.17405405]
[1642103512370,0.15557284,3262.8,3262.7,11.17405405]
[1642103512571,0.15557284,3262.8,3262.7,4.82405405]
[1642103514412,0.88811356,3262.9,3262.7,4.82405405]
[1642103514611,0.88811356,3262.9,3262.8,5.8225]
[1642103514810,0.88811356,3262.9,3262.8,6.4659955]
[1642103515011,0.88811356,3262.9,3262.8,6.7659955]
[1642103515712,0.88811356,3262.9,3262.8,6.0]
[1642103517961,0.88811356,3262.9,3262.8,8.31438149]
[1642103518163,0.88811356,3262.9,3262.8,9.82078149]
[1642103518362,0.009093,3263.2,3263.0,1.32397307]
[1642103518563,0.09602104,3263.2,3263.1,0.3]
[1642103519369,0.09602104,3263.2,3263.1,12.29784764]
[1642103521172,0.09602104,3263.2,3263.1,14.67074206]
[1642103522016,0.09602104,3263.2,3263.1,5.07074206]
[1642103522215,0.09602104,3263.2,3263.1,4.07074206]
[1642103522415,0.09602104,3263.2,3263.1,1.69784764]
[1642103523014,0.09602104,3263.2,3263.1,2.69784764]
[1642103523215,0.09602104,3263.2,3263.1,1.69784764]
[1642103525267,0.09602104,3263.2,3263.1,5.14784764]
[1642103525664,0.09602104,3263.2,3263.1,1.69784764]
[1642103525964,0.09602104,3263.2,3263.1,1.69864764]
[1642103526166,0.09602104,3263.2,3263.1,1.69944764]
[1642103526563,0.09602104,3263.2,3263.1,1.39944764]
[1642103527364,0.10604104,3263.2,3263.1,1.39944764]
[1642103527766,0.09602104,3263.2,3263.1,1.69944764]
[1642103528166,0.09602104,3263.2,3263.1,5.34944764]
[1642103528767,0.09602104,3263.2,3263.1,5.64944764]
[1642103529010,0.09602104,3263.2,3263.1,6.64944764]
[1642103529210,0.09602104,3263.2,3263.1,12.59944764]
[1642103529819,0.1225,3263.9,3263.4,0.76577]
[1642103530014,1.65734011,3264.4,3263.6,0.76572]
[1642103530015,3.1886,3264.2,3263.6,0.76572]
[1642103530214,0.1225,3264.2,3263.7,3.26128812]
[1642103530613,0.1225,3264.2,3263.8,1.0]
[1642103530818,0.1225,3264.3,3264.1,0.76556]
[1642103531014,1.51914014,3264.4,3264.3,9.56554]
[1642103531215,1.51914014,3264.4,3264.3,14.15851616]
[1642103531413,1.01985189,3264.5,3264.4,9.25]
[1642103531618,1.01985189,3264.5,3264.4,10.25]
[1642103531816,0.0096632,3264.5,3264.4,13.34789805]
[1642103532220,0.0096632,3264.5,3264.4,10.25]
[1642103532864,0.0096632,3264.5,3264.4,13.27917114]
[1642103533157,0.0096632,3264.5,3264.4,13.57917114]
[1642103533359,2.27871021,3265.1,3264.6,0.00545542]
[1642103533560,2.27871021,3265.1,3264.9,0.7654228]
[1642103533759,1.2491,3265.6,3265.0,7.21066467]
[1642103533961,3.9024,3265.6,3265.0,7.21066467]
[1642103534161,3.9024,3265.6,3265.1,1.0]
[1642103534361,3.9024,3265.6,3265.2,1.24460511]
[1642103534569,0.1225,3265.6,3265.3,0.76547]
[1642103534966,0.009139,3265.4,3265.3,0.76547]
[1642103535165,0.17757127,3265.5,3265.3,3.41547]
[1642103535367,0.00511581,3265.4,3265.3,0.76547]
[1642103536065,0.00511581,3265.4,3265.3,1.53093]
[1642103536265,0.00511581,3265.4,3265.3,3.0618768]
[1642103536516,0.18268708,3265.4,3265.3,5.81193164]
[1642103536914,0.18268708,3265.4,3265.3,6.81193164]
[1642103537116,0.18268708,3265.4,3265.3,16.89661683]
[1642103537314,0.00511581,3265.4,3265.3,13.98433164]
[1642103537715,0.00511581,3265.4,3265.3,13.86193164]
[1642103537917,0.00511581,3265.4,3265.3,14.30393164]
[1642103538521,0.00511581,3265.4,3265.3,14.42633164]
[1642103539724,0.01680781,3265.4,3265.3,5.46886484]
[1642103539922,0.01680781,3265.4,3265.3,2.45005484]
[1642103540560,0.01680781,3265.4,3265.3,2.45085484]
[1642103540962,0.009093,3265.6,3265.3,2.45085484]
[1642103541164,0.1224,3265.5,3265.3,2.45165484]
[1642103541366,0.00113685,3265.6,3265.3,3.98255484]
[1642103541761,0.00113685,3265.6,3265.4,2.29612]
[1642103542166,0.00113685,3265.6,3265.5,0.6]
[1642103542562,0.00113685,3265.6,3265.5,6.4]
[1642103542765,0.00113685,3265.6,3265.5,7.16535]
[1642103542964,0.00113685,3265.6,3265.5,1.36535]
[1642103543164,0.00113685,3265.6,3265.5,31.3927732]
[1642103543367,0.00113685,3265.6,3265.5,4.88996104]
[1642103543563,0.00113685,3265.6,3265.5,4.81540484]
[1642103545012,0.00113685,3265.6,3265.5,8.76540484]
[1642103545424,0.00113685,3265.6,3265.5,4.81540484]
[1642103546319,0.00113685,3265.6,3265.5,4.81620484]
[1642103546614,0.00113685,3265.6,3265.5,4.81700484]
[1642103547215,0.00113685,3265.6,3265.5,4.05165484]
[1642103549862,0.00113685,3265.6,3265.5,4.81700484]
[1642103551911,0.00113685,3265.6,3265.5,7.81700484]
[1642103552110,0.00113685,3265.6,3265.5,4.81700484]
[1642103552712,0.00113685,3265.6,3265.5,5.28585388]
[1642103552911,0.00113685,3265.6,3265.5,8.33585388]
[1642103555017,0.00113685,3265.6,3265.5,5.28585388]
[1642103555312,0.00113685,3265.6,3265.5,4.52050388]
[1642103555597,0.12353685,3265.6,3265.5,2.45165484]
[1642103555994,0.00113685,3265.6,3265.5,2.45165484]
[1642103556191,0.12353685,3265.6,3265.5,2.45165484]
[1642103556392,0.00113685,3265.6,3265.5,2.45165484]
[1642103556793,0.12353685,3265.6,3265.5,0.0016]
[1642103558598,0.00113685,3265.6,3265.5,0.0016]
[1642103558794,0.00113685,3265.6,3265.5,3.8016]
[1642103559007,0.00113685,3265.6,3265.5,4.4016]
[1642103560609,0.00113685,3265.6,3265.5,6.85165484]
[1642103561414,0.00113685,3265.6,3265.5,7.85165484]
[1642103561810,0.00113685,3265.6,3265.5,11.71693484]
[1642103562108,0.00113685,3265.6,3265.5,8.61693484]
[1642103563760,0.00113685,3265.6,3265.5,11.41693484]
[1642103564159,0.00113685,3265.6,3265.5,8.61693484]
[1642103564359,0.00113685,3265.6,3265.5,8.73933484]
[1642103565660,0.00113685,3265.6,3265.5,3.63933484]
[1642103565862,1.46237476,3265.6,3265.5,2.75165484]
[1642103566160,1.46237476,3265.6,3265.5,2.45165484]
[1642103566161,0.00113685,3265.6,3265.5,2.45165484]
[1642103567215,0.00113685,3265.6,3265.5,3.05165484]
[1642103567516,0.00113685,3265.6,3265.5,4.07170635]
[1642103567717,0.9841346,3265.8,3265.6,9.6]
[1642103567915,0.9841346,3265.8,3265.5,3.06365151]
[1642103567916,0.9841346,3265.8,3265.7,9.942]
[1642103568115,0.9841346,3265.8,3265.7,11.00714]
[1642103568315,0.98527145,3265.8,3265.7,11.00714]
[1642103568516,0.98527145,3265.8,3265.7,12.00714]
[1642103568919,0.98527145,3265.8,3265.7,2.37522549]
[1642103569117,0.98527145,3265.8,3265.7,4.82528033]
[1642103569315,0.98527145,3265.8,3265.7,4.52528033]
[1642103570162,0.98527145,3265.8,3265.7,5.82528033]
[1642103570765,0.98527145,3265.8,3265.7,10.42528033]
[1642103571571,0.98527145,3265.8,3265.7,10.86728033]
[1642103571769,0.1224,3266.4,3266.1,0.76511]
[1642103571972,0.1224,3266.4,3266.3,8.41319]
[1642103572168,0.1224,3266.4,3266.3,12.65704483]
[1642103572366,0.1224,3266.4,3266.3,10.91089]
[1642103572567,0.1224,3266.4,3266.3,12.15972982]
[1642103572967,0.1224,3266.4,3266.3,12.19509205]
[1642103573367,0.1224,3266.4,3266.3,12.15972982]
[1642103574812,0.1224,3266.4,3266.3,12.28212982]
[1642103575011,0.1224,3266.4,3266.3,15.17168466]
[1642103575214,0.1224,3266.4,3266.3,15.61368466]
[1642103575412,3.725,3267.0,3266.5,0.01022399]
[1642103575613,3.725,3267.0,3266.7,2.29488]
[1642103575816,2.27871021,3267.4,3266.9,9.5562]
[1642103576015,2.27871021,3267.4,3267.3,9.619064]
[1642103576216,2.27871021,3267.4,3267.3,11.62076353]
[1642103576413,2.27871021,3267.4,3267.3,12.62076353]
[1642103576616,2.40111021,3267.5,3267.3,12.92076353]
[1642103576820,2.40111021,3267.5,3267.4,0.3]
[1642103577014,2.40111021,3267.5,3267.4,12.61489609]
[1642103577215,2.40452075,3267.5,3267.4,12.61489609]
[1642103577662,2.40452075,3267.5,3267.4,12.56489609]
[1642103578265,0.12581054,3267.5,3267.4,5.41495093]
[1642103579665,0.00341054,3267.5,3267.4,8.31495093]
[1642103580365,0.00341054,3267.5,3267.4,5.41495093]
[1642103580569,0.00341054,3267.5,3267.4,3.72295093]
[1642103581164,0.00341054,3267.5,3267.4,3.72375093]
[1642103581811,0.00341054,3267.5,3267.4,4.02375093]
[1642103582013,0.00341054,3267.5,3267.4,1.57449609]
[1642103582715,0.00341054,3267.5,3267.4,5.37449609]
[1642103582914,0.00341054,3267.5,3267.4,5.67449609]
[1642103583314,0.00341054,3267.5,3267.4,8.30557182]
[1642103589416,0.00341054,3267.5,3267.4,9.72087182]
[1642103589618,0.1224,3268.2,3267.5,9.61276804]
[1642103589817,0.1224,3268.2,3268.1,9.016381]
[1642103590020,0.1224,3268.2,3268.1,10.397181]
[1642103590216,0.1224,3268.2,3268.1,12.021281]
[1642103590418,0.1224,3268.2,3268.1,13.21793071]
[1642103590622,0.1224,3268.2,3268.1,4.21793071]
[1642103590818,0.1224,3268.2,3268.1,4.09563071]
[1642103591018,0.1224,3268.2,3268.1,2.21303071]
[1642103591221,0.0724,3268.2,3267.6,2.63107573]
[1642103591621,0.00341055,3268.1,3267.6,2.63107573]
[1642103592019,0.00284212,3268.0,3267.7,0.76492]
[1642103592220,0.00284212,3268.0,3267.8,1.49130554]
[1642103592420,0.1246737,3267.9,3267.8,1.49130554]
[1642103592687,0.0022737,3267.9,3267.8,1.49130554]
[1642103592883,0.00625266,3267.9,3267.8,1.49130554]
[1642103593081,0.00625266,3267.9,3267.8,1.79130554]
[1642103593681,0.00625266,3267.9,3267.8,2.09130554]
[1642103593881,0.00625266,3267.9,3267.8,4.72238127]
[1642103594082,0.00625266,3267.9,3267.8,5.72238127]
[1642103594483,0.00625266,3267.9,3267.8,5.67238127]
[1642103594685,0.00625266,3267.9,3267.8,4.37238127]
[1642103594882,0.00625266,3267.9,3267.8,4.12238127]
[1642103595083,0.00625266,3267.9,3267.8,4.42238127]
[1642103595288,0.07865266,3268.2,3267.8,4.42238127]
[1642103595483,0.07865266,3268.2,3267.8,5.18729667]
[1642103595686,1.5643,3268.6,3267.8,2.63562312]
[1642103595884,3.55618825,3268.5,3267.8,2.63562312]
[1642103596086,1.1223,3268.4,3267.8,2.63562312]
[1642103596440,3.13109516,3268.3,3267.8,2.63722312]
[1642103596628,1.46283241,3268.2,3267.8,4.02750034]
[1642103596830,0.1223,3268.2,3267.8,4.02750034]
[1642103597228,0.1223,3268.2,3267.8,4.02830034]
[1642103597428,0.1223,3268.4,3267.8,2.63802312]
[1642103597629,0.1223,3268.4,3267.9,2.63107573]
[1642103598029,0.1223,3268.4,3268.0,0.00341054]
[1642103598230,1.1223,3268.4,3268.0,0.00341054]
[1642103598433,2.97643718,3268.3,3268.0,0.00341054]
[1642103598631,1.45948251,3268.2,3268.0,0.00341054]
[1642103598832,2.45948251,3268.2,3268.0,0.00341054]
[1642103599030,1.45948251,3268.2,3267.9,0.00397896]
[1642103599232,1.33718251,3268.2,3267.9,0.00397896]
[1642103599434,0.1223,3268.4,3267.9,0.00397896]
[1642103599633,0.1223,3268.4,3268.3,0.59392097]
[1642103600031,0.1223,3268.4,3268.3,0.30170527]
[1642103600666,0.1223,3268.4,3268.3,0.00170527]
[1642103600866,0.1223,3268.4,3268.3,2.75475304]
[1642103601068,0.1223,3268.4,3268.3,3.22343332]
[1642103601470,0.1223,3268.4,3268.3,3.98981332]
[1642103601669,0.1223,3268.4,3268.3,3.99061332]
[1642103601871,3.7111,3268.7,3268.3,5.52002332]
[1642103602074,3.7111,3268.7,3268.6,0.014795]
[1642103602272,3.7111,3268.7,3268.4,0.30113684]
[1642103602473,0.9841346,3268.8,3268.4,0.30113684]
[1642103602673,2.47626466,3268.8,3268.5,0.3]
[1642103603079,2.47626466,3268.8,3268.5,1.0647829]
[1642103603273,2.47626466,3268.8,3268.5,0.3]
[1642103603474,0.9841346,3268.8,3268.5,0.3]
[1642103603917,0.9841346,3268.8,3268.5,1.06474]
[1642103604418,0.9841346,3268.8,3268.7,3.161165]
[1642103604618,0.9841346,3268.8,3268.7,3.461165]
[1642103604817,0.9841346,3268.8,3268.7,4.225875]
[1642103604818,0.98527145,3268.8,3268.7,4.225875]
[1642103605224,0.98527145,3268.8,3268.7,3.91471]
[1642103605422,0.98527145,3268.8,3268.7,4.21471]
[1642103605722,0.98527145,3268.8,3268.7,3.45]
[1642103606119,0.98527145,3268.8,3268.6,0.4223]
[1642103606319,0.98527145,3268.8,3268.6,0.7223]
[1642103607119,0.98527145,3268.8,3268.7,2.63035886]
[1642103607323,0.98527145,3268.8,3268.7,2.93035886]
[1642103607868,0.98527145,3268.8,3268.7,2.63035886]
[1642103608470,0.98527145,3268.8,3268.7,3.40934886]
[1642103608671,0.98527145,3268.8,3268.7,3.70934886]
[1642103608873,0.98527145,3268.8,3268.7,5.69356131]
[1642103609068,17.89,3270.6,3268.8,9.6]
[1642103609069,1.01985189,3269.7,3268.8,9.6]
[1642103609272,1.01985189,3269.7,3269.4,0.031986]
[1642103609470,1.01985189,3269.7,3269.5,2.72988455]
[1642103609670,1.01985189,3269.7,3269.6,6.5723]
[1642103609870,3.03828028,3269.8,3269.6,7.5723]
[1642103610070,0.00511581,3269.7,3269.6,1.4223]
[1642103610370,3.03828028,3269.8,3269.6,2.95086]
[1642103610570,3.03828028,3269.8,3269.6,3.7151337]
[1642103610773,3.79817123,3270.3,3269.6,3.7151337]
[1642103610972,3.2344,3270.4,3270.1,0.026532]
[1642103611170,12.10969164,3270.7,3270.1,0.026532]
[1642103611417,10.94279164,3270.7,3270.1,0.026532]
[1642103611617,0.12741581,3270.6,3270.1,0.026532]
[1642103611821,0.12741581,3270.6,3270.5,0.015489]
[1642103612026,9.40925888,3270.7,3270.5,0.315489]
[1642103612218,2.6660786,3270.7,3270.5,0.315489]
[1642103612619,2.6660786,3270.7,3270.5,1.315489]
[1642103612817,2.6660786,3270.7,3270.6,9.72282589]
[1642103613016,2.6660786,3270.7,3270.6,10.48509127]
[1642103613218,2.67176284,3270.7,3270.6,11.48509127]
[1642103613419,2.67176284,3270.7,3270.6,12.59649127]
[1642103613618,3.635,3271.1,3270.6,12.59649127]
[1642103613619,3.79817123,3271.5,3270.7,9.6]
[1642103613819,3.79817123,3271.5,3270.9,0.043339]
[1642103614019,3.79817123,3271.5,3271.4,2.643339]
[1642103614218,0.9841346,3271.7,3271.4,3.643339]
[1642103614417,0.9841346,3271.7,3271.6,8.00754363]
[1642103614618,0.9841346,3271.7,3271.6,8.42974363]
[1642103614918,0.9841346,3271.7,3271.6,9.72974363]
[1642103614919,0.98981883,3271.7,3271.6,9.72974363]
[1642103615175,3.79817123,3272.1,3271.6,13.27974363]
[1642103615368,3.79817123,3272.1,3272.0,4.543339]
[1642103615568,3.79817123,3272.1,3272.0,4.965539]
[1642103615767,3.79817123,3272.1,3272.0,6.607099]
[1642103615970,3.79817123,3272.1,3272.0,2.107099]
[1642103616167,3.8945,3272.4,3272.0,6.157099]
[1642103616369,0.00602585,3272.6,3272.3,0.038958]
[1642103616668,0.00602585,3272.6,3272.3,1.623658]
[1642103616866,0.00602585,3272.6,3272.4,0.76374]
[1642103617268,0.00602585,3272.6,3272.4,2.29109]
[1642103617768,0.00602585,3272.6,3272.5,0.3]
[1642103618169,0.01114166,3272.6,3272.5,0.3]
[1642103619020,0.13334166,3272.6,3272.2,0.76384]
[1642103619220,0.13334166,3272.6,3272.2,1.52765]
[1642103619428,0.00454739,3272.5,3272.3,0.7637711]
[1642103619821,0.00397896,3272.4,3272.3,0.7637711]
[1642103620021,0.00397896,3272.4,3272.3,0.6]
[1642103620422,0.00397896,3272.4,3272.2,1.36384]
[1642103620624,0.00397896,3272.4,3272.2,0.6]
[1642103620924,0.00341054,3272.3,3272.2,0.3]
[1642103621128,1.10245003,3272.2,3272.1,1.0638839]
[1642103621350,0.00341054,3272.3,3272.1,1.0638839]
[1642103621624,0.00284212,3272.2,3272.1,8.2277139]
[1642103621824,0.00174679,3272.2,3272.1,0.6]
[1642103622024,0.00174679,3272.2,3272.1,0.3]
[1642103622231,0.00174679,3272.2,3271.9,0.6]
[1642103622425,0.00174679,3272.2,3271.4,4.06341593]
[1642103622426,0.1222,3272.1,3271.4,0.7222]
[1642103622674,0.12337836,3272.1,3271.4,0.4222]
[1642103622868,0.00117836,3272.1,3271.5,0.00223218]
[1642103623469,1.42128604,3271.7,3271.5,0.00223218]
[1642103623869,1.42128604,3271.7,3271.5,0.01290218]
[1642103624270,1.42128604,3271.7,3271.6,0.00166375]
[1642103625273,5.64348604,3271.7,3271.6,0.00166375]
[1642103625475,8.60275285,3271.7,3271.6,0.00166375]
[1642103625672,4.57289098,3271.7,3270.9,0.00564272]
[1642103625870,0.1222,3271.6,3270.7,0.00677956]
[1642103626070,2.99923416,3271.6,3270.8,0.886387]
[1642103626274,2.99923416,3271.6,3270.8,0.764187]
[1642103626517,2.99923416,3271.6,3270.9,0.60564272]
[1642103626917,2.99923416,3271.6,3271.0,0.00507429]
[1642103627118,0.1222,3271.6,3271.1,0.7641359]
[1642103627521,0.1222,3271.6,3271.2,0.00393745]
[1642103628023,0.1222,3271.6,3271.4,0.777565]
[1642103628222,0.1222,3272.0,3271.5,0.3]
[1642103628421,0.12337836,3272.1,3271.8,0.016097]
[1642103628722,0.12337836,3272.1,3271.6,0.00166375]
[1642103629026,1.41253378,3272.0,3271.6,0.00166375]
[1642103629621,1.41253378,3272.0,3271.5,0.00223218]
[1642103630021,1.41253378,3272.0,3271.1,0.3]
[1642103630022,2.8989012,3271.9,3271.2,0.30393745]
[1642103630275,2.8989012,3271.9,3271.7,1.57932124]
[1642103630473,1.41253378,3272.0,3271.7,1.87932124]
[1642103631474,1.41253378,3272.0,3271.5,4.35723765]
[1642103631871,1.41253378,3272.0,3271.6,0.00166375]
[1642103632271,1.41253378,3272.0,3271.6,2.62958016]
[1642103632675,1.41253378,3272.0,3271.7,0.00109533]
[1642103632878,1.41253378,3272.0,3271.7,0.01046333]
[1642103633076,0.12337836,3272.1,3271.7,0.01046333]
[1642103633273,0.00117836,3272.1,3271.9,0.022328]
[1642103634221,0.00117836,3272.1,3272.0,1.57932124]
[1642103634617,0.00117836,3272.1,3272.0,1.87932124]
[1642103635017,0.00117836,3272.1,3272.0,6.57932124]
[1642103635223,0.00117836,3272.1,3272.0,10.11133765]
[1642103636221,0.00117836,3272.1,3272.0,8.65421641]
[1642103639067,0.00117836,3272.1,3272.0,10.18182731]
[1642103639470,0.00117836,3272.1,3272.0,13.34568654]
[1642103640267,0.00117836,3272.1,3272.0,10.18182731]
[1642103640471,0.00117836,3272.1,3272.0,4.57772731]
[1642103640670,0.00117836,3272.1,3272.0,2.62791641]
[1642103641432,0.12337836,3272.1,3272.0,2.62791641]
[1642103641628,0.12337836,3272.1,3272.0,1.641e-05]
[1642103641629,5.02337836,3272.1,3272.0,1.641e-05]
[1642103641823,3.20081994,3272.1,3271.7,3.94296994]
[1642103642026,3.20081994,3272.1,3271.9,1.57652258]
[1642103643024,3.20081994,3272.1,3271.7,2.3658792]
[1642103643423,3.20081994,3272.1,3271.7,0.00109533]
[1642103643624,21.09081994,3272.1,3271.7,0.00109533]
[1642103643825,1.43396835,3271.9,3271.4,0.0028006]
[1642103644027,3.3986046,3271.8,3271.4,0.0028006]
[1642103644324,18.4542,3271.8,3271.4,0.0028006]
[1642103644529,1.0,3271.7,3271.4,0.0028006]
[1642103644727,0.5642,3271.6,3271.4,0.0028006]
[1642103644923,17.89,3271.5,3270.9,0.00564272]
[1642103645175,0.76444,3271.3,3270.9,0.00564272]
[1642103645366,0.1222,3271.2,3270.9,0.00564272]
[1642103647876,0.1222,3271.4,3270.9,0.00564272]
[1642103648269,0.1222,3271.6,3270.9,0.00564272]
[1642103649532,0.442,3271.5,3270.9,0.00564272]
[1642103649733,0.88662,3271.4,3270.9,0.00564272]
[1642103649935,0.442,3271.3,3270.6,0.00734799]
[1642103650133,0.1222,3271.2,3270.6,0.00734799]
[1642103650333,0.442,3271.1,3270.6,0.00734799]
[1642103650533,1.29029017,3270.8,3270.6,0.00734799]
[1642103650734,4.1722,3270.7,3270.6,0.00734799]
[1642103650935,10.9972,3270.7,3270.6,0.00734799]
[1642103651232,10.9972,3270.7,3269.8,2.36478387]
[1642103651233,2.85,3270.5,3269.8,2.36478387]
[1642103651435,4.3,3270.6,3269.6,3.15384296]
[1642103651436,0.01245291,3270.1,3269.6,3.15384296]
[1642103651631,0.01245291,3270.1,3269.9,0.00397896]
[1642103651632,1.32902,3270.0,3269.9,0.00397896]
[1642103651836,10.41322,3270.0,3269.9,0.00397896]
[1642103652032,2.26322,3270.0,3269.9,0.00397896]
[1642103652535,1.4985,3270.0,3269.9,0.00397896]
[1642103652771,8.3985,3270.0,3269.9,0.00397896]
[1642103653173,17.89,3269.9,3269.5,0.00625266]
[1642103653373,9.5,3269.7,3269.4,0.43612405]
[1642103653573,0.5643,3269.6,3269.4,0.43612405]
[1642103653972,1.20683,3269.6,3268.9,3.15384296]
[1642103654372,19.09683,3269.6,3269.0,0.00284211]
[1642103654871,0.76486,3269.5,3269.0,0.00284211]
[1642103655077,1.56488599,3269.8,3269.1,0.010897]
[1642103655078,0.44370527,3269.8,3269.1,0.010897]
[1642103655472,0.00113685,3269.7,3269.2,0.00170527]
[1642103655871,0.21299008,3269.5,3269.2,0.00170527]
[1642103656717,0.21299008,3269.5,3269.3,0.4437106]
[1642103657120,0.00113685,3269.7,3269.3,0.4437106]
[1642103657518,0.00113685,3269.7,3269.2,0.00250527]
[1642103657721,2.94516024,3269.7,3269.2,0.00250527]
[1642103657918,0.00113685,3269.7,3269.3,0.00113684]
[1642103659122,0.00113685,3269.7,3269.3,0.77557284]
[1642103659522,0.00113685,3269.7,3269.6,3.514992]
[1642103659722,0.00113685,3269.7,3269.6,0.014992]
[1642103660572,0.00113685,3269.7,3269.4,1.06452]
[1642103660771,0.00113685,3269.7,3269.6,2.660329]
[1642103660973,0.00113685,3269.7,3269.6,2.782629]
[1642103661575,0.00113685,3269.7,3269.6,2.660329]
[1642103661771,0.00113685,3269.7,3269.6,6.132629]
[1642103662676,0.00113685,3269.7,3269.6,5.26300753]
[1642103663075,0.00113685,3269.7,3269.6,2.75267853]
[1642103663275,0.00113685,3269.7,3269.6,2.75347853]
[1642103664128,0.00113685,3269.7,3269.6,2.63117853]
[1642103666630,0.00113685,3269.7,3269.6,4.6524]
[1642103666830,0.00113685,3269.7,3269.6,4.7747]
[1642103667697,0.00113685,3269.7,3269.6,9.9747]
[1642103668090,0.00113685,3269.7,3269.6,15.18067494]
[1642103669088,1.56341738,3270.7,3269.7,9.55]
[1642103669289,1.56341738,3270.7,3270.3,0.010193]
[1642103669489,0.00511581,3270.6,3270.5,0.83224576]
[1642103669688,0.00511581,3270.6,3270.5,4.03224576]
[1642103669888,0.00682108,3270.9,3270.5,4.03224576]
[1642103670088,0.00682108,3270.9,3270.7,1.27650224]
[1642103670288,1.56341738,3271.1,3270.7,1.27650224]
[1642103670289,0.00625266,3270.8,3270.7,1.58594624]
[1642103671090,5.266e-05,3270.8,3270.7,1.58594624]
[1642103671291,3.13539482,3271.8,3270.9,9.55]
[1642103671529,3.13539482,3271.8,3271.7,4.95626488]
[1642103671726,3.13539482,3271.8,3271.7,4.98927488]